bitfinex-derivatives/quotes_SOLF0:USTF0_20250731
["timestamp","ask_amount","ask_price","bid_price","bid_amount"]
[1753962790726,3.14,180.48,180.46,8.652]
[1753962790930,3.14,180.47,180.46,5.542]
[1753962791129,3.14,180.47,180.45,5.5424]
[1753962791330,127.8973,180.58,180.41,6.14632091]
[1753962791331,3.14,180.46,180.41,6.14632091]
[1753962791535,3.14,180.48,180.42,3.11]
[1753962791730,5.5418,180.48,180.41,3.03632091]
[1753962791931,3.14,180.47,180.41,6.14632091]
[1753962792129,3.14,180.47,180.42,3.11]
[1753962792335,3.14,180.5,180.44,3.11]
[1753962793237,5.5418,180.48,180.45,5.5424]
[1753962793439,3.14,180.48,180.41,3.11]
[1753962793735,3.14,180.46,180.41,3.11]
[1753962794038,3.14,180.51,180.46,3.11]
[1753962794331,5.541,180.5,180.46,5.5421]
[1753962794539,3.14,180.48,180.47,3.11]
[1753962795135,3.03632091,180.49,180.42,3.03632091]
[1753962795336,3.24,180.48,180.43,2.95]
[1753962796034,6.27632091,180.48,180.43,2.95]
[1753962796236,3.24,180.47,180.4,3.03632091]
[1753962796433,3.24,180.47,180.44,2.95]
[1753962796832,8.7821,180.47,180.44,2.95]
[1753962797027,3.24,180.47,180.44,2.95]
[1753962797439,3.24,180.45,180.44,2.95]
[1753962798028,3.24,180.47,180.43,2.95]
[1753962798235,3.24,180.47,180.44,2.95]
[1753962798638,5.5424,180.46,180.44,2.95]
[1753962798942,3.03632091,180.48,180.41,2.95]
[1753962799129,5.5437,180.41,180.38,8.4945]
[1753962799330,3.24,180.41,180.38,2.95]
[1753962799531,3.24,180.41,180.35,2.95]
[1753962799929,3.24,180.44,180.38,3.03632091]
[1753962800237,3.24,180.43,180.39,2.95]
[1753962800439,3.24,180.43,180.39,8.4941]
[1753962800737,3.24,180.42,180.41,2.95]
[1753962801130,3.24,180.42,180.35,3.03632091]
[1753962801337,3.03632091,180.43,180.35,3.03632091]
[1753962801537,3.24,180.4,180.36,2.95]
[1753962801839,3.24,180.39,180.38,2.95]
[1753962802737,3.24,180.4,180.38,5.5446]
[1753962802938,3.24,180.4,180.39,2.95]
[1753962803529,3.24,180.4,180.38,5.5446]
[1753962803731,3.24,180.4,180.33,2.95]
[1753962803939,6.27632091,180.4,180.33,2.95]
[1753962804144,8.7841,180.4,180.37,5.5447]
[1753962804338,8.7841,180.4,180.39,2.95]
[1753962804339,11.82042091,180.4,180.39,2.95]
[1753962804534,6.27632091,180.4,180.39,2.95]
[1753962805036,3.03632091,180.4,180.39,2.95]
[1753962805240,3.03632091,180.43,180.39,2.95]
[1753962805437,3.24,180.41,180.34,3.03632091]
[1753962805646,6.27632091,180.38,180.37,2.95]
[1753962806242,3.03632091,180.38,180.33,2.95]
[1753962806436,3.24,180.37,180.3,3.03632091]
[1753962806742,3.24,180.37,180.29,2.95]
[1753962806941,3.24,180.37,180.31,2.95]
[1753962807638,5.5451,180.37,180.33,5.546]
[1753962807847,3.24,180.36,180.34,2.95]
[1753962808144,3.24,180.36,180.35,2.95]
[1753962808442,8.7851,180.37,180.34,5.5458]
[1753962808644,8.7851,180.37,180.36,2.95]
[1753962808950,3.24,180.37,180.36,2.95]
[1753962809636,3.24,180.39,180.33,2.95]
[1753962810240,8.7844,180.39,180.36,2.95]
[1753962810543,3.24,180.38,180.3,3.03632091]
[1753962810743,3.24,180.38,180.34,8.4956]
[1753962810744,3.24,180.37,180.34,8.4956]
[1753962810943,5.5449,180.38,180.35,2.95]
[1753962811143,3.24,180.36,180.35,2.95]
[1753962811443,3.03632091,180.38,180.34,2.95]
[1753962811647,5.5452,180.37,180.35,2.95]
[1753962811842,3.24,180.36,180.35,2.95]
[1753962812343,3.24,180.37,180.33,8.4959]
[1753962812540,5.545,180.37,180.34,2.95]
[1753962812738,5.545,180.37,180.35,2.95]
[1753962813045,5.545,180.37,180.3,2.95]
[1753962813247,8.785,180.37,180.34,2.95]
[1753962814149,8.7853,180.36,180.33,5.5461]
[1753962814349,8.7853,180.36,180.35,2.95]
[1753962814749,3.24,180.36,180.35,2.95]
[1753962815442,8.7853,180.36,180.35,2.95]
[1753962815646,3.24,180.36,180.29,2.95]
[1753962815851,5.5458,180.35,180.29,2.95]
[1753962816149,5.5458,180.35,180.31,5.5466]
[1753962816340,8.7858,180.35,180.32,2.95]
[1753962816943,112.6266,180.43,180.31,2.95]
[1753962816944,10.22381182,180.34,180.31,2.95]
[1753962817141,3.24,180.32,180.27,2.95]
[1753962817340,5.5474,180.29,180.25,5.5484]
[1753962817544,8.7874,180.29,180.26,2.95]
[1753962817846,3.24,180.29,180.26,2.95]
[1753962818045,3.03632091,180.31,180.24,2.95]
[1753962818241,3.98271087,180.3,180.25,5.5486]
[1753962818448,3.98271087,180.29,180.25,2.95]
[1753962818645,3.98271087,180.28,180.25,2.95]
[1753962818843,3.9798467,180.27,180.26,3.03632091]
[1753962819451,3.9798467,180.27,180.26,11.53462091]
[1753962819952,7.76850299,180.36,180.34,2.95]
[1753962820142,3.24,180.37,180.34,2.95]
[1753962820451,7.76850299,180.38,180.34,2.95]
[1753962820643,7.76850299,180.38,180.37,2.95]
[1753962820844,4.52850299,180.39,180.37,2.95]
[1753962821043,8.7846,180.38,180.37,2.95]
[1753962821249,3.24,180.38,180.35,2.95]
[1753962821452,3.24,180.38,180.33,2.95]
[1753962821647,7.76850299,180.39,180.26,2.95]
[1753962821849,7.76850299,180.39,180.33,2.95]
[1753962822256,4.52850299,180.39,180.37,2.95]
[1753962822540,4.52850299,180.41,180.39,2.95]
[1753962822746,4.52850299,180.44,180.41,5.5437]
[1753962822948,4.52850299,180.48,180.42,2.95]
[1753962823148,3.24,180.48,180.45,5.5424]
[1753962823347,3.24,180.48,180.43,3.03632091]
[1753962823541,3.24,180.48,180.47,2.95]
[1753962824050,4.52850299,180.49,180.37,2.95]
[1753962824254,3.24,180.49,180.44,2.95]
[1753962824447,3.24,180.49,180.45,5.5423]
[1753962824651,3.24,180.49,180.44,2.95]
[1753962824847,3.03632091,180.52,180.47,3.03632091]
[1753962824848,3.24,180.52,180.47,3.03632091]
[1753962825054,5.5408,180.51,180.48,2.95]
[1753962825246,4.52850299,180.54,180.47,3.03632091]
[1753962825451,3.01,180.51,180.49,3.01]
[1753962826548,3.01,180.51,180.5,3.01]
[1753962826746,3.01,180.52,180.5,3.01]
[1753962827555,8.5506,180.51,180.5,3.01]
[1753962827751,3.01,180.51,180.5,3.01]
[1753962827950,4.52850299,180.53,180.5,3.01]
[1753962827951,3.01,180.52,180.5,3.01]
[1753962828151,5.5406,180.51,180.47,8.57812091]
[1753962828357,3.01,180.5,180.47,3.03632091]
[1753962828859,3.01,180.52,180.48,3.01]
[1753962829052,7.5648239,180.55,180.48,3.01]
[1753962829354,8.55,180.54,180.48,8.5513]
[1753962829550,3.01,180.54,180.49,3.01]
[1753962829751,3.01,180.53,180.49,3.01]
[1753962829957,8.5501,180.53,180.49,3.01]
[1753962830355,3.01,180.52,180.49,3.01]
[1753962830556,3.01,180.52,180.5,3.01]
[1753962830751,3.01,180.52,180.51,3.01]
[1753962830947,3.01,180.52,180.48,3.01]
[1753962831256,3.01,180.5,180.44,3.01]
[1753962831450,3.03632091,180.53,180.45,3.03632091]
[1753962831655,3.01,180.54,180.48,3.01]
[1753962831858,3.94883708,180.53,180.48,3.01]
[1753962832054,3.94883708,180.52,180.48,3.01]
[1753962832254,3.01,180.52,180.48,3.01]
[1753962832450,5.5401,180.53,180.48,3.01]
[1753962832660,3.03632091,180.55,180.49,3.01]
[1753962832661,3.01,180.51,180.49,3.01]
[1753962832950,3.01,180.5,180.47,3.01]
[1753962833145,3.01,180.5,180.48,3.01]
[1753962833346,3.01,180.5,180.45,3.03632091]
[1753962833560,3.01,180.5,180.49,3.01]
[1753962834455,8.551,180.5,180.49,3.01]
[1753962834655,3.01,180.51,180.46,3.01]
[1753962835048,3.01,180.48,180.46,3.01]
[1753962835255,3.01,180.48,180.47,3.01]
[1753962835457,5.5407,180.51,180.47,3.03632091]
[1753962835759,3.01,180.51,180.48,3.01]
[1753962836356,3.01,180.56,180.49,3.03632091]
[1753962836562,3.01,180.54,180.51,3.01]
[1753962836861,3.01,180.53,180.51,3.01]
[1753962837058,3.01,180.53,180.52,3.01]
[1753962837661,3.01,180.56,180.52,3.01]
[1753962837860,3.94938533,180.55,180.52,3.01]
[1753962838056,3.01,180.55,180.54,3.01]
[1753962838262,6.95938533,180.55,180.54,3.01]
[1753962838566,3.01,180.56,180.54,3.01]
[1753962838758,3.01,180.56,180.55,3.01]
[1753962838959,6.95946076,180.56,180.55,3.01]
[1753962839162,3.28124,180.57,180.55,3.01]
[1753962839368,3.28124,180.57,180.56,3.01]
[1753962839563,4.22078693,180.57,180.56,3.01]
[1753962839769,0.27124,180.57,180.56,3.01]
[1753962841061,3.01,180.56,180.51,3.01]
[1753962841266,3.01,180.55,180.51,3.01]
[1753962841471,5.5396,180.55,180.51,3.01]
[1753962841673,3.01,180.53,180.51,3.01]
[1753962841876,3.01,180.53,180.52,3.01]
[1753962842064,0.27124,180.57,180.51,5.5406]
[1753962842269,3.01,180.55,180.51,3.01]
[1753962842469,3.01,180.54,180.48,3.03632091]
[1753962842670,3.03632091,180.55,180.49,3.01]
[1753962842866,0.27124,180.57,180.45,3.01]
[1753962842867,3.03632091,180.51,180.45,3.01]
[1753962843074,3.01,180.49,180.46,3.01]
[1753962843378,3.01,180.48,180.46,3.01]
[1753962844671,3.01,180.48,180.39,372.54]
[1753962844672,3.01,180.48,180.44,3.01]
[1753962844871,3.01,180.48,180.34,3.01]
[1753962845073,3.03632091,180.47,180.4,5.5438]
[1753962845272,5.543,180.44,180.42,3.01]
[1753962845467,8.553,180.44,180.42,3.01]
[1753962845873,3.01,180.47,180.4,3.03632091]
[1753962846074,3.01,180.45,180.44,3.01]
[1753962846274,3.01,180.45,180.41,5.5434]
[1753962846475,3.01,180.45,180.43,3.01]
[1753962846980,3.01,180.44,180.43,3.01]
[1753962847474,8.57892091,180.45,180.43,3.01]
[1753962847674,8.5526,180.45,180.44,3.01]
[1753962847874,3.03632091,180.47,180.44,3.01]
[1753962848075,8.5523,180.46,180.43,3.01]
[1753962848377,6.04632091,180.47,180.43,3.01]
[1753962848575,11.58832091,180.47,180.43,8.5529]
[1753962848776,11.58832091,180.47,180.43,5.5429]
[1753962848976,6.04632091,180.47,180.44,3.01]
[1753962849374,11.58822091,180.47,180.45,3.01]
[1753962849672,3.03632091,180.54,180.33,102.22]
[1753962849673,3.01,180.53,180.42,3.03632091]
[1753962849873,5.5415,180.49,180.45,5.5423]
[1753962850078,3.01,180.5,180.46,3.01]
[1753962850469,8.5511,180.5,180.46,3.01]
[1753962850874,3.01,180.5,180.46,3.01]
[1753962851073,3.01,180.49,180.47,3.01]
[1753962851278,3.01,180.49,180.44,3.03632091]
[1753962851279,3.01,180.49,180.48,3.01]
[1753962852180,3.01,180.5,180.48,3.01]
[1753962852774,8.5511,180.5,180.48,3.01]
[1753962853680,8.5511,180.5,180.49,3.01]
[1753962854179,8.5511,180.5,180.47,3.01]
[1753962854381,3.01,180.49,180.48,3.01]
[1753962854781,8.5511,180.5,180.48,3.01]
[1753962855683,8.5511,180.5,180.49,3.27]
[1753962856383,3.03632091,180.5,180.44,3.27]
[1753962856580,3.0,180.47,180.44,3.27]
[1753962856779,3.0,180.46,180.44,3.27]
[1753962857675,8.5422,180.46,180.44,3.27]
[1753962857986,3.0,180.46,180.45,3.27]
[1753962858476,3.0,180.5,180.45,3.27]
[1753962858684,3.0,180.51,180.45,3.27]
[1753962859086,3.0,180.54,180.48,3.27]
[1753962859785,5.541,180.5,180.47,5.5418]
[1753962859987,8.541,180.5,180.47,3.27]
[1753962860581,5.5413,180.49,180.48,3.27]
[1753962860783,3.0,180.5,180.49,3.27]
[1753962860980,3.0,180.5,180.47,3.27]
[1753962861186,3.03632091,180.53,180.47,3.27]
[1753962861187,3.0,180.49,180.47,3.27]
[1753962861390,3.0,180.48,180.43,3.27]
[1753962861589,5.5424,180.46,180.41,3.27]
[1753962861882,3.0,180.48,180.41,3.27]
[1753962862384,5.5422,180.46,180.43,5.543]
[1753962862687,5.5422,180.46,180.45,3.27]
[1753962863482,5.542,180.47,180.46,3.27]
[1753962864585,8.542,180.47,180.46,3.27]
[1753962865187,12.45996787,180.47,180.46,3.27]
[1753962865492,9.45996787,180.47,180.46,3.27]
[1753962865891,12.45996787,180.47,180.46,3.27]
[1753962866290,5.5424,180.46,180.44,3.27]
[1753962866492,3.0,180.46,180.44,3.27]
[1753962866686,3.03632091,180.49,180.44,3.27]
[1753962866892,3.0,180.45,180.44,3.27]
[1753962867187,5.5424,180.46,180.44,3.27]
[1753962867388,8.5424,180.46,180.45,3.27]
[1753962867586,12.46068959,180.46,180.45,3.27]
[1753962867885,5.5429,180.44,180.43,3.27]
[1753962868093,8.5429,180.44,180.43,3.27]
[1753962868887,5.5429,180.44,180.43,3.27]
[1753962870095,5.5426,180.45,180.43,3.27]
[1753962870395,3.0,180.46,180.4,3.27]
[1753962870597,3.9176706,180.45,180.4,3.27]
[1753962870796,3.0,180.46,180.4,3.27]
[1753962870993,5.5426,180.45,180.4,3.27]
[1753962871197,3.0,180.46,180.4,3.27]
[1753962871795,5.5426,180.45,180.42,5.5432]
[1753962871987,8.5426,180.45,180.44,3.27]
[1753962872592,5.5423,180.46,180.38,3.03632091]
[1753962872793,3.0,180.48,180.4,3.03632091]
[1753962872998,3.0,180.48,180.45,3.27]
[1753962872999,5.5419,180.47,180.45,3.27]
[1753962873301,3.0,180.48,180.45,3.27]
[1753962873600,3.0,180.48,180.47,3.27]
[1753962874796,3.0,180.52,180.45,3.27]
[1753962875194,3.0,180.52,180.49,5.5411]
[1753962875497,3.0,180.52,180.46,3.03632091]
[1753962875702,5.5402,180.53,180.47,3.27]
[1753962875898,110.8998,180.54,180.48,3.03632091]
[1753962876102,3.0,180.53,180.49,3.27]
[1753962876395,102.36,180.54,180.51,5.5404]
[1753962876603,5.5395,180.55,180.48,3.03632091]
[1753962876802,8.5395,180.55,180.53,3.27]
[1753962877504,3.0,180.55,180.53,3.27]
[1753962877698,3.0,180.55,180.54,3.27]
[1753962878004,3.0,180.56,180.55,3.27]
[1753962878702,3.03632091,180.56,180.49,3.27]
[1753962878902,3.0,180.55,180.49,3.27]
[1753962879300,5.54,180.54,180.5,5.5407]
[1753962879499,8.54,180.54,180.5,5.5407]
[1753962879804,8.54,180.54,180.53,3.27]
[1753962880706,5.54,180.54,180.53,3.27]
[1753962881202,3.0,180.56,180.5,3.03632091]
[1753962881400,0.27124,180.57,180.53,3.27]
[1753962881605,3.27124,180.57,180.53,3.27]
[1753962881800,5.81014,180.57,180.53,8.8098]
[1753962882004,0.27124,180.57,180.55,3.27]
[1753962882401,0.27124,180.57,180.56,3.03632091]
[1753962882600,0.27124,180.57,180.56,6.30632091]
[1753962883505,0.27124,180.57,180.56,11.84542091]
[1753962884804,3.0,180.64,180.61,3.27]
[1753962885501,3.0,180.64,180.62,3.14]
[1753962885700,2.99,180.63,180.62,3.14]
[1753962886003,8.527,180.63,180.62,3.14]
[1753962887310,5.537,180.63,180.62,3.14]
[1753962887512,5.5367,180.64,180.63,3.14]
[1753962887715,8.5267,180.64,180.63,3.14]
[1753962887908,5.5367,180.64,180.63,3.14]
[1753962889612,5.5364,180.65,180.63,3.14]
[1753962889812,102.26,180.66,180.59,4.94774844]
[1753962890010,2.99,180.64,180.63,3.14]
[1753962890415,2.99,180.63,180.61,3.14]
[1753962890610,2.99,180.62,180.61,3.14]
[1753962890810,102.26,180.66,180.61,3.14]
[1753962891013,2.99,180.65,180.62,3.14]
[1753962891210,2.99,180.65,180.58,5.5382]
[1753962891412,5.5377,180.61,180.59,3.14]
[1753962891816,5.5377,180.61,180.58,3.14]
[1753962892407,2.99,180.63,180.56,3.14]
[1753962892611,4.94774844,180.6,180.54,3.14]
[1753962892811,2.99,180.59,180.54,3.14]
[1753962893011,5.5392,180.56,180.53,5.54]
[1753962893316,8.5292,180.56,180.55,3.14]
[1753962893518,2.99,180.56,180.55,3.14]
[1753962893810,102.26,180.61,180.55,3.14]
[1753962894018,2.99,180.59,180.55,3.14]
[1753962894319,8.5284,180.59,180.55,3.14]
[1753962894513,102.26,180.61,180.55,3.14]
[1753962894719,2.99,180.58,180.55,3.14]
[1753962894912,2.99,180.58,180.56,3.14]
[1753962895119,2.99,180.57,180.56,3.14]
[1753962895719,8.5285,180.58,180.57,3.14]
[1753962896318,2.99,180.57,180.56,3.14]
[1753962897019,5.5385,180.58,180.56,3.14]
[1753962897219,8.5285,180.58,180.57,3.14]
[1753962897423,2.99,180.58,180.57,3.14]
[1753962898621,2.99,180.58,180.55,3.14]
[1753962898821,2.99,180.57,180.56,3.14]
[1753962899723,2.99,180.58,180.57,3.14]
[1753962900120,5.5384,180.59,180.57,3.14]
[1753962900523,8.5284,180.59,180.58,3.14]
[1753962900724,105.25,180.61,180.58,3.14]
[1753962901121,105.25,180.61,180.55,3.14]
[1753962901424,4.94774844,180.64,180.58,3.14]
[1753962901615,4.94774844,180.66,180.58,3.14]
[1753962901821,375.51,180.68,180.61,3.14]
[1753962902016,5.5363,180.66,180.63,3.14]
[1753962902218,2.99,180.67,180.6,4.94774844]
[1753962902424,5.5362,180.66,180.62,5.5371]
[1753962902727,4.94774844,180.71,180.63,3.14]
[1753962902728,2.99,180.7,180.63,3.14]
[1753962902916,5.5356,180.68,180.64,5.5364]
[1753962903122,2.99,180.7,180.65,3.14]
[1753962903426,5.536,180.67,180.66,3.14]
[1753962904123,5.536,180.67,180.54,140.12306133]
[1753962904124,5.5355,180.68,180.65,3.14]
[1753962904325,2.99,180.75,180.66,4.94774844]
[1753962904523,4.94774844,180.72,180.65,3.14]
[1753962904820,8.5257,180.68,180.67,3.14]
[1753962905524,8.5257,180.68,180.62,3.14]
[1753962905525,2.99,180.67,180.62,3.14]
[1753962905716,2.99,180.67,180.6,3.14]
[1753962905918,5.5362,180.66,180.62,5.5371]
[1753962906116,8.5262,180.66,180.62,5.5371]
[1753962906319,8.5262,180.66,180.64,3.14]
[1753962906927,8.5262,180.66,180.62,5.5371]
[1753962907126,8.5262,180.66,180.65,3.14]
[1753962907527,8.5262,180.66,180.63,5.5369]
[1753962907528,5.5358,180.67,180.63,3.03451431]
[1753962907717,11.067,180.75,180.54,375.35451431]
[1753962907718,3.03451431,180.73,180.66,3.14]
[1753962907920,3.03451431,180.73,180.66,8.6758]
[1753962907921,2.99,180.72,180.66,8.6758]
[1753962908118,5.535,180.7,180.67,3.14]
[1753962908324,2.99,180.72,180.67,3.14]
[1753962908528,2.99,180.72,180.65,8.57071431]
[1753962908725,5.5353,180.69,180.66,3.14]
[1753962909120,5.5353,180.69,180.66,8.676]
[1753962909319,5.5351,180.69,180.68,3.14]
[1753962909524,2.99,180.71,180.63,3.14]
[1753962909838,2.99,180.71,180.6,4.94431805]
[1753962909839,5.5359,180.67,180.6,4.94431805]
[1753962910132,2.99,180.68,180.61,3.14]
[1753962910327,2.99,180.68,180.62,4.94431805]
[1753962910529,2.99,180.68,180.63,3.14]
[1753962911338,5.5358,180.67,180.64,5.5366]
[1753962911529,5.5358,180.67,180.65,3.14]
[1753962911727,2.99,180.7,180.65,3.14]
[1753962911923,4.94431805,180.74,180.67,3.14]
[1753962912126,2.99,180.73,180.67,3.14]
[1753962912534,5.5353,180.69,180.67,3.14]
[1753962912827,2.99,180.73,180.67,3.14]
[1753962913237,8.5254,180.69,180.68,3.14]
[1753962913435,2.99,180.69,180.66,3.14]
[1753962913633,8.5257,180.68,180.67,3.14]
[1753962913832,2.99,180.7,180.63,3.14]
[1753962914039,2.99,180.71,180.63,3.14]
[1753962914443,5.5356,180.68,180.65,5.5363]
[1753962914642,5.5356,180.68,180.67,3.14]
[1753962916141,8.5056,180.68,180.67,3.14]
[1753962916340,5.5356,180.68,180.67,3.14]
[1753962917143,2.97,180.71,180.67,2.99]
[1753962917345,2.97,180.7,180.68,2.99]
[1753962917644,7.91431805,180.72,180.67,2.99]
[1753962917842,2.97,180.71,180.67,2.99]
[1753962918041,2.97,180.71,180.68,2.99]
[1753962918444,5.5351,180.7,180.68,2.99]
[1753962918640,5.5351,180.7,180.69,2.99]
[1753962919241,5.5351,180.69,180.56,11.078]
[1753962919441,5.5351,180.69,180.63,4.94431805]
[1753962919843,5.5351,180.69,180.64,2.99]
[1753962920343,5.5351,180.69,180.67,2.99]
[1753962920543,5.5351,180.69,180.68,2.99]
[1753962920739,5.5363,180.66,180.64,2.99]
[1753962920936,4.94431805,180.72,180.62,2.99]
[1753962921144,2.97,180.69,180.62,2.99]
[1753962921438,5.5357,180.67,180.64,5.5365]
[1753962921644,5.5357,180.67,180.65,2.99]
[1753962923443,5.5355,180.68,180.66,2.99]
[1753962923639,2.97,180.7,180.66,2.99]
[1753962924043,2.97,180.72,180.66,2.99]
[1753962924444,5.5348,180.7,180.67,5.5355]
[1753962924646,5.5348,180.7,180.68,2.99]
[1753962925647,5.5348,180.7,180.67,5.5355]
[1753962926048,5.5346,180.71,180.7,2.99]
[1753962926449,8.5046,180.71,180.7,2.99]
[1753962926950,5.5351,180.7,180.68,2.99]
[1753962927246,8.5051,180.7,180.69,2.99]
[1753962927936,5.5355,180.68,180.65,2.99]
[1753962928139,2.97,180.67,180.63,2.99]
[1753962928648,8.5059,180.67,180.63,2.99]
[1753962928848,2.97,180.69,180.63,2.99]
[1753962929346,5.5356,180.68,180.66,2.99]
[1753962929947,5.5354,180.68,180.66,2.99]
[1753962930151,8.5054,180.68,180.67,2.99]
[1753962932447,5.536,180.67,180.64,5.5365]
[1753962932655,8.506,180.67,180.66,2.99]
[1753962934754,5.536,180.67,180.66,2.99]
[1753962936050,5.5356,180.68,180.66,2.99]
[1753962937260,5.5357,180.67,180.66,2.99]
[1753962937550,8.5057,180.67,180.66,2.99]
[1753962942749,5.5357,180.67,180.66,2.99]
[1753962947057,8.5357,180.67,180.66,2.99]
[1753962949457,5.5355,180.68,180.64,3.03476925]
[1753962949657,7.60210944,180.71,180.66,3.03476925]
[1753962949854,7.60210944,180.71,180.67,3.26]
[1753962950256,5.5354,180.69,180.67,3.26]
[1753962951565,3.0,180.67,180.6,3.26]
[1753962951861,3.0,180.66,180.62,3.26]
[1753962952062,8.5363,180.66,180.63,5.5367]
[1753962952258,8.5363,180.66,180.64,3.26]
[1753962952462,5.5363,180.66,180.64,3.26]
[1753962952860,5.5363,180.66,180.64,8.7967]
[1753962953162,5.5363,180.66,180.65,3.26]
[1753962955656,8.5359,180.67,180.65,3.26]
[1753962956763,5.536,180.66,180.65,3.26]
[1753962957964,3.03476925,180.67,180.62,3.26]
[1753962958168,3.0,180.66,180.63,3.26]
[1753962958462,5.5366,180.65,180.63,3.26]
[1753962958768,3.0,180.64,180.63,3.26]
[1753962961168,5.5366,180.65,180.63,3.26]
[1753962961369,8.5366,180.65,180.64,3.26]
[1753962962367,3.0,180.63,180.61,8.7975]
[1753962962663,3.0,180.66,180.59,3.26]
[1753962963271,3.0,180.66,180.61,3.26]
[1753962963470,5.5368,180.64,180.61,3.26]
[1753962963668,8.5368,180.64,180.61,3.26]
[1753962964266,8.5368,180.64,180.61,8.7975]
[1753962964470,8.5368,180.64,180.62,3.26]
[1753962964862,3.03476925,180.65,180.56,6.21873242]
[1753962965064,3.03476925,180.61,180.55,6.21873242]
[1753962965268,3.0,180.58,180.53,3.26]
[1753962965464,5.5401,180.53,180.48,6.21873242]
[1753962965664,3.0,180.54,180.49,3.26]
[1753962965870,6.03476925,180.56,180.49,3.26]
[1753962966074,5.5398,180.54,180.49,3.26]
[1753962966269,3.03476925,180.54,180.49,3.26]
[1753962966469,3.0,180.53,180.5,3.26]
[1753962966672,8.5407,180.51,180.5,3.26]
[1753962967671,5.5407,180.51,180.5,3.26]
[1753962968377,3.0,180.53,180.47,6.29476925]
[1753962968570,3.0,180.53,180.48,3.26]
[1753962968771,5.541,180.5,180.48,3.26]
[1753962968972,3.0,180.54,180.48,3.26]
[1753962969165,3.0,180.52,180.48,3.26]
[1753962969371,3.0,180.52,180.49,3.26]
[1753962969773,5.5409,180.5,180.49,3.26]
[1753962970171,8.5409,180.5,180.49,3.26]
[1753962970369,5.5422,180.46,180.44,3.26]
[1753962970770,4.60210944,180.58,180.44,3.26]
[1753962970966,5.5418,180.48,180.44,3.26]
[1753962971576,5.5418,180.48,180.44,8.8027]
[1753962971778,5.5418,180.48,180.45,3.26]
[1753962972673,5.5419,180.47,180.45,3.26]
[1753962972877,3.0,180.49,180.45,3.26]
[1753962973580,3.0,180.51,180.46,3.26]
[1753962973874,3.03476925,180.52,180.46,3.26]
[1753962974178,5.5415,180.49,180.46,3.26]
[1753962974379,3.0,180.5,180.46,3.26]
[1753962974982,5.5415,180.49,180.46,3.26]
[1753962975884,5.5413,180.49,180.46,3.26]